bitfinex/quotes_ETHUSD_20240823
["timestamp","ask_amount","ask_price","bid_price","bid_amount"]
[1724393121482,5.492,2685.7,2685.3,19.46]
[1724393121697,5.492,2685.7,2685.4,19.46]
[1724393123119,3.0,2685.7,2685.4,19.46]
[1724393123415,2.3656,2685.4,2684.3,5.0]
[1724393123718,2.3656,2684.7,2684.3,5.0]
[1724393124160,2.3656,2684.7,2683.6,3.72622]
[1724393124161,2.3656,2684.8,2683.9,3.72587]
[1724393124502,2.3656,2684.8,2684.3,3.72528]
[1724393124723,2.3656,2684.8,2683.9,3.72582]
[1724393124865,2.3656,2684.8,2684.1,3.72564]
[1724393125821,2.3656,2684.8,2684.0,3.72577]
[1724393125982,2.3656,2684.8,2683.9,3.72582]
[1724393126166,2.3656,2684.8,2684.0,3.7257]
[1724393126365,2.3656,2684.8,2684.1,4.470752]
[1724393126901,2.3656,2684.8,2684.1,0.745152]
[1724393127413,2.3656,2684.8,2683.9,3.72582]
[1724393127585,2.3656,2684.8,2683.7,3.72616]
[1724393127586,5.3656,2684.8,2683.7,3.72607]
[1724393127904,5.3656,2684.8,2683.8,3.72596]
[1724393130509,2.456,2684.5,2683.4,3.73899153]
[1724393130681,3.074104,2684.4,2683.5,3.72645]
[1724393131288,3.074104,2684.4,2683.4,4.98556968]
[1724393131471,6.799334,2684.4,2683.4,4.98556968]
[1724393131673,3.074104,2684.4,2683.5,3.72646]
[1724393132001,3.074104,2684.4,2683.6,3.72633]
[1724393132309,3.074104,2684.4,2683.6,3.8090412]
[1724393132681,2.456,2684.4,2683.8,3.72603]
[1724393132886,4.42401,2685.3,2684.0,3.72566]
[1724393132887,5.2876,2684.8,2684.0,3.72566]
[1724393133097,3.0,2684.7,2684.0,3.72566]
[1724393133301,2.2876,2684.8,2684.1,0.08093441]
[1724393133497,3.188812,2684.8,2684.1,0.08093441]
[1724393133685,3.0,2684.7,2683.7,3.7261]
[1724393133884,3.0,2684.7,2684.2,0.08159809]
[1724393134088,3.0,2684.7,2683.9,3.72588]
[1724393134291,3.0,2684.7,2684.3,0.08156837]
[1724393134495,3.0,2684.7,2683.9,3.72588]
[1724393134816,2.2876,2684.8,2683.9,3.72582]
[1724393135019,2.2876,2684.8,2684.0,0.08165754]
[1724393135884,5.2876,2684.8,2684.0,0.08165754]
[1724393137079,2.376,2684.7,2684.0,0.08165754]
[1724393137287,2.376,2684.4,2683.3,3.72673]
[1724393137582,2.376,2684.4,2683.2,5.0]
[1724393137583,5.376,2684.4,2683.6,3.72631]
[1724393138026,2.376,2684.4,2683.7,0.07889555]
[1724393138195,2.376,2684.4,2683.7,2.81144822]
[1724393138396,2.376,2684.4,2683.8,3.72604]
[1724393138729,2.4821,2685.0,2684.1,3.72555]
[1724393139019,2.4821,2685.0,2683.9,0.07883609]
[1724393139020,2.4821,2685.0,2684.2,20.165123]
[1724393139181,5.4821,2685.0,2684.2,19.49874692]
[1724393139382,9.20651,2685.0,2684.2,19.49874692]
[1724393139783,5.4821,2685.0,2684.2,19.49874692]
[1724393140385,9.2065,2685.0,2684.2,19.49874692]
[1724393140727,1.26866153,2684.9,2684.2,19.49874692]
[1724393140883,3.0,2684.9,2684.2,19.49874692]
[1724393141253,3.72509,2684.5,2684.2,19.49874692]
[1724393141390,2.3652,2684.4,2684.2,0.07874692]
[1724393141588,2.3652,2684.4,2684.0,19.42]
[1724393141807,3.72544,2684.3,2683.6,19.42]
[1724393142100,3.96196,2684.3,2683.7,19.42]
[1724393142509,0.58459448,2684.2,2683.7,19.42]
[1724393142883,0.58459448,2684.2,2684.0,3.7257]
[1724393143948,0.58459448,2684.2,2683.8,26.8719]
[1724393144134,3.72432,2685.1,2683.5,0.37392115]
[1724393144135,2.5335567,2686.2,2684.8,37.94]
[1724393144292,0.20266064,2688.0,2686.7,2.43791267]
[1724393144519,0.20266064,2688.0,2687.6,7.22389948]
[1724393144685,0.20266064,2688.0,2687.6,10.94468948]
[1724393144899,0.20266064,2688.0,2687.6,9.34712363]
[1724393145125,0.20266064,2688.0,2687.6,7.22389948]
[1724393145310,0.20266064,2688.0,2687.9,7.44074]
[1724393145520,0.10266064,2688.0,2687.9,7.44074]
[1724393146051,0.10266064,2688.0,2687.9,8.9091694]
[1724393146208,0.10266064,2688.0,2687.9,4.6387994]
[1724393146553,0.10266064,2688.0,2687.9,7.99074]
[1724393147288,0.10266064,2688.0,2687.9,11.71111]
[1724393147526,0.10266064,2688.0,2687.9,7.99074]
[1724393148131,0.10266064,2688.0,2687.9,12.99074]
[1724393149910,0.10266064,2688.0,2687.9,24.42]
[1724393150110,0.10266064,2688.0,2687.9,19.42]
[1724393151015,0.10266064,2688.0,2687.9,23.14037]
[1724393151239,0.10266064,2688.0,2687.9,29.54807515]
[1724393151659,0.10266064,2688.0,2687.9,19.42]
[1724393152029,0.10266064,2688.0,2687.9,23.14037]
[1724393152215,0.10266064,2688.0,2687.9,26.86074]
[1724393153050,0.10266064,2688.0,2687.9,26.92431113]
[1724393154326,2.4234,2688.7,2688.4,19.31733936]
[1724393154550,2.4234,2688.7,2688.5,19.31733936]
[1724393154775,2.4234,2688.7,2688.5,19.38072109]
[1724393156055,0.01872449,2689.3,2688.5,19.38072109]
[1724393156255,0.01872449,2689.3,2688.6,19.31733936]
[1724393156463,0.01872449,2689.3,2688.6,19.38066246]
[1724393157550,3.01872449,2689.3,2688.6,19.38066246]
[1724393157749,0.01872449,2689.3,2688.6,19.38066246]
[1724393158364,3.01872449,2689.3,2688.6,19.38066246]
[1724393158538,4.10211009,2689.3,2688.6,19.38066246]
[1724393159331,7.82066009,2689.3,2688.6,19.38066246]
[1724393159561,4.10211009,2689.3,2688.7,19.31733936]
[1724393159760,3.01872449,2689.3,2688.7,19.31733936]
[1724393159933,0.01872449,2689.3,2688.8,0.06322906]
[1724393160339,0.01872449,2689.3,2688.7,19.31733936]
[1724393160652,0.01872449,2689.3,2688.8,19.38058582]
[1724393160847,0.01872449,2689.3,2688.9,2.85998358]
[1724393161063,0.01872449,2689.3,2688.9,6.64198602]
[1724393161284,0.01872449,2689.3,2689.0,19.31733936]
[1724393161476,0.01872449,2689.3,2689.2,7.43714]
[1724393161770,2.3002,2690.5,2689.4,23.01681487]
[1724393161938,2.3002,2690.5,2689.7,3.71787]
[1724393162264,2.3002,2690.5,2689.8,19.3612057]
[1724393162763,2.3002,2690.5,2689.8,0.06259083]
[1724393162985,2.4864,2691.2,2689.8,0.06259083]
[1724393163185,0.05,2692.1,2689.1,2.3784]
[1724393163186,0.7,2691.6,2689.3,5.56487132]
[1724393163384,0.7,2691.6,2689.9,0.05850042]
[1724393163385,3.71672,2690.6,2689.9,0.05850042]
[1724393163528,3.71672,2690.6,2689.3,5.0]
[1724393163529,0.371672,2690.5,2689.3,5.0]
[1724393163723,3.71639,2690.8,2690.0,0.05809405]
[1724393163964,6.16803281,2691.5,2689.4,3.71824]
[1724393164173,3.7165,2690.8,2689.6,7.43585]
[1724393164368,3.71662,2690.7,2689.7,0.55]
[1724393164541,3.71648,2690.8,2689.7,0.05818284]
[1724393164542,4.45996,2690.6,2689.7,0.05818284]
[1724393164740,2.45258281,2691.5,2689.7,0.05818284]
[1724393164948,3.71744,2690.1,2689.5,5.0]
[1724393165148,3.71744,2690.1,2689.8,0.05526299]
[1724393165466,7.43315,2690.7,2689.0,0.01248153]
[1724393165665,3.71646,2690.8,2689.9,0.05336829]
[1724393165875,3.71696,2690.4,2689.2,3.71849]
[1724393166047,2.2795,2690.8,2690.0,0.05171267]
[1724393166372,2.2795,2690.8,2689.9,3.71747]
[1724393166541,2.50745,2690.8,2690.0,3.71744]
[1724393166746,2.2795,2690.8,2690.0,0.05171267]
[1724393167004,5.99588,2690.8,2690.0,0.05171267]
[1724393167173,0.599588,2690.7,2690.0,3.71746]
[1724393167373,2.2795,2690.8,2690.0,3.71746]
[1724393167374,2.2795,2690.8,2690.1,0.05168308]
[1724393167875,2.2795,2690.8,2689.4,8.71825]
[1724393167876,3.7168,2690.5,2689.4,8.71825]
[1724393168030,3.71655,2690.7,2690.2,0.05156668]
[1724393168229,2.3591,2691.6,2690.2,19.29861487]
[1724393168472,3.71623,2690.9,2690.3,0.04986263]
[1724393168815,2.2666,2690.9,2690.2,3.7171]
[1724393168934,2.2666,2690.9,2690.4,0.04961893]
[1724393169129,3.71598,2691.1,2690.3,0.04964852]
[1724393169334,0.743172,2691.1,2690.3,19.29861487]
[1724393169532,3.371531,2691.5,2690.4,0.04961893]
[1724393169835,3.371531,2691.5,2690.4,23.0650638]
[1724393170028,3.371531,2691.5,2690.4,23.0650538]
[1724393170503,3.371531,2691.5,2690.4,19.3482338]
[1724393170656,3.371531,2691.5,2690.5,2.48482338]
[1724393170969,3.371531,2691.5,2690.5,2.5342276]
[1724393171168,3.371531,2691.5,2690.6,19.29861487]
[1724393171475,3.71591,2691.2,2690.7,0.04934506]
[1724393171701,7.43272,2690.8,2690.7,0.04934506]
[1724393171838,17.21764,2690.8,2690.7,0.04934506]
[1724393172031,17.21764,2690.8,2689.0,19.3110964]
[1724393172032,3.71747,2690.0,2689.0,19.3110964]
[1724393172257,3.095682,2690.0,2689.0,3.73120153]
[1724393172466,2.3522,2690.0,2689.9,0.04259036]
[1724393172675,3.71763,2689.9,2689.0,0.01248153]
[1724393172853,6.13207,2690.4,2689.9,0.04259036]
[1724393173155,6.13207,2690.4,2689.0,19.3110964]
[1724393173156,2.4151,2690.4,2689.4,3.71826]
[1724393173353,3.028281,2690.4,2689.4,2.67352049]
[1724393173553,3.028281,2690.4,2689.5,0.04270876]
[1724393174235,3.028281,2690.4,2689.0,0.01248153]
[1724393174236,2.4926,2689.8,2689.0,0.01248153]
[1724393174467,6.21044,2689.8,2689.6,0.04131168]
[1724393174655,7.203247,2689.8,2689.0,0.01248153]
[1724393174851,3.485407,2689.8,2689.0,0.01248153]
[1724393175272,6.21043,2689.8,2689.0,0.01248153]
[1724393175437,3.71831,2689.4,2689.0,0.01248153]
[1724393176559,5.3811,2689.3,2689.0,0.01248153]
[1724393176736,2.45258281,2690.2,2689.0,0.01248153]
[1724393176934,3.36896919,2690.2,2689.2,3.71855]
[1724393177134,6.36896919,2690.2,2689.2,3.71855]
[1724393177439,0.38919603,2690.1,2689.0,3.73121153]
[1724393177676,3.87500692,2690.1,2689.1,4.09174115]
[1724393178687,0.38917301,2690.5,2689.9,3.71758]
[1724393178849,0.38917301,2690.5,2689.1,0.37312115]
[1724393178850,0.38917301,2690.5,2689.1,4.09180115]
[1724393179051,0.38917301,2690.5,2689.6,3.718]
[1724393179267,3.71664,2690.6,2689.4,3.71829]
[1724393179465,3.71664,2690.6,2689.5,0.55]
[1724393179666,2.82522044,2690.8,2689.2,3.71854]
[1724393179879,3.71748,2690.0,2689.0,5.01248153]
[1724393180068,3.71736,2690.1,2689.0,5.01248153]
[1724393180292,3.71751,2690.0,2689.0,0.01248153]
[1724393180470,3.71783,2689.8,2689.0,0.01248153]
[1724393180782,2.3305,2689.9,2689.0,0.01248153]
[1724393181081,2.2684,2689.2,2689.0,0.01248153]
[1724393181283,3.71871,2689.1,2689.0,0.01248153]
[1724393181979,7.43742,2689.1,2689.0,0.01248153]
[1724393182341,10.43742,2689.1,2689.0,0.01248153]
[1724393182542,12.69062,2689.1,2689.0,0.01248153]
[1724393182741,18.050255,2689.1,2689.0,0.01248153]
[1724393183001,3.71925,2688.8,2687.5,19.29861487]
[1724393183158,3.71952,2688.6,2687.5,23.01951487]
[1724393183359,2.2863,2688.5,2687.6,0.03548825]
[1724393183557,5.2863,2688.5,2687.7,2.30550031]
[1724393183760,5.2863,2688.5,2687.6,0.03548825]
[1724393183961,5.2863,2688.5,2687.8,0.03542897]
[1724393183962,3.71983,2688.3,2687.8,0.03542897]
[1724393184163,3.71983,2688.3,2687.7,0.03545861]
[1724393184482,3.71983,2688.3,2687.8,0.03542897]
[1724393184483,2.4978,2688.0,2687.8,0.03542897]
[1724393184785,2.4978,2688.0,2687.0,23.02017487]
[1724393184943,2.4978,2688.0,2687.0,3.72156]
[1724393185149,2.4978,2688.0,2687.1,0.03563651]
[1724393185603,2.4978,2688.0,2687.0,19.29861487]
[1724393185787,3.72039,2687.9,2687.2,0.03560685]
[1724393185955,3.72039,2687.9,2687.1,0.03563651]
[1724393186306,3.7206,2687.8,2687.2,0.03560685]
[1724393186489,3.7206,2687.8,2687.0,19.29861487]
[1724393186650,1.08977793,2687.8,2687.3,0.0355772]
[1724393186862,1.08977793,2687.8,2687.0,19.29861487]
[1724393187062,0.9589893,2688.0,2687.4,0.03554755]
[1724393187388,2.4351,2688.5,2686.9,3.72166]
[1724393187704,2.4351,2688.5,2687.3,7.4422]
[1724393187862,5.4351,2688.5,2687.4,0.07441364]
[1724393188068,9.15466,2688.5,2687.4,0.11125629]
[1724393188501,3.71982,2688.3,2687.4,0.03684265]
[1724393188696,3.71982,2688.3,2687.0,19.29861487]
[1724393188697,3.0,2688.2,2687.1,3.72139]
[1724393188902,6.71998,2688.2,2687.5,0.03673199]
[1724393189062,6.71998,2688.2,2687.0,23.02020487]
[1724393189268,6.71998,2688.2,2687.6,0.03670813]
[1724393189593,4.76409,2688.1,2687.0,19.29861487]
[1724393189800,4.7641,2688.1,2687.7,0.03660327]
[1724393190012,3.7209,2687.6,2686.5,19.29861487]
[1724393190214,2.4138,2687.5,2686.5,19.29861487]
[1724393190519,3.72115,2687.4,2686.5,21.60072536]
[1724393190885,7.44232,2687.4,2686.5,21.60072536]
[1724393191069,3.72115,2687.4,2686.5,21.60072536]
[1724393191269,3.72115,2687.4,2686.5,2.30211049]
[1724393191270,4.706731,2687.4,2686.5,2.30211049]
[1724393191470,3.72129,2687.3,2686.2,19.29861487]
[1724393191671,4.706731,2687.4,2686.2,19.29861487]
[1724393191871,4.706731,2687.4,2686.2,23.02120487]
[1724393192575,8.427901,2687.4,2686.2,23.02120487]
[1724393192775,1.0841701,2687.3,2686.3,2.67439749]
[1724393193004,1.0841701,2687.3,2686.3,6.39693749]
[1724393193211,2.4138,2687.5,2686.7,3.72203]
[1724393193629,6.13481,2687.5,2686.3,10.11939749]
[1724393193834,3.0,2687.4,2686.3,6.39688749]
[1724393194037,3.0,2687.4,2686.4,3.72243]
[1724393194331,3.0,2687.4,2686.7,3.722]
[1724393194635,2.4138,2687.5,2686.6,0.07443527]
[1724393194976,2.4138,2687.5,2686.5,4.73413175]
[1724393195231,2.4138,2687.5,2686.3,6.39690749]
[1724393195441,2.4138,2687.5,2686.6,19.29861487]
[1724393196095,2.4138,2687.5,2686.7,3.72202]
[1724393196096,5.4138,2687.5,2686.7,3.72202]
[1724393196312,2.4138,2687.5,2686.7,3.72202]
[1724393196480,2.4138,2687.5,2686.6,19.29861487]
[1724393196678,2.4138,2687.5,2686.7,2.02846857]
[1724393197400,2.296,2688.3,2687.0,3.72151]
[1724393197631,2.296,2688.3,2687.1,23.02003487]
[1724393197779,2.296,2688.3,2686.9,7.36]
[1724393197780,3.7201,2688.1,2687.2,19.29861487]
[1724393197977,2.296,2688.3,2687.3,3.72113]
[1724393198181,2.296,2688.3,2687.5,3.72084]
[1724393198484,2.296,2688.3,2687.6,0.05019175]
[1724393198683,0.58377159,2688.2,2687.6,0.05019175]
[1724393199034,0.58377159,2688.2,2687.6,3.77091175]
[1724393199176,0.58377159,2688.2,2687.6,0.05019175]
[1724393199380,0.58377159,2688.2,2687.7,0.37710318]
[1724393199816,0.58377159,2688.2,2687.8,0.05010282]
[1724393200181,3.58377159,2688.2,2687.5,3.72084]
[1724393200377,3.58377159,2688.2,2687.9,0.0455076]
[1724393200576,3.58377159,2688.2,2687.4,19.67072787]
[1724393200882,3.58377159,2688.2,2687.5,3.72085]
[1724393201082,3.58377159,2688.2,2687.6,2.30228449]
[1724393201281,3.58377159,2688.2,2687.6,2.35204221]
[1724393202088,3.58377159,2688.2,2687.6,0.04975772]
[1724393202328,3.72012,2688.1,2687.4,19.67072787]
[1724393202507,7.30375159,2688.2,2687.7,0.05491872]
[1724393202815,7.30375159,2688.2,2687.4,19.67072787]
[1724393203016,7.30375159,2688.2,2687.8,0.05486931]
[1724393203215,7.30375159,2688.2,2687.4,19.67072787]
[1724393203517,3.58377159,2688.2,2687.4,19.67072787]
[1724393203722,3.58377159,2688.2,2687.5,0.05501753]
[1724393204287,3.72019,2688.1,2687.5,0.05501753]
[1724393204690,7.30373159,2688.2,2687.5,0.05501753]
[1724393204918,7.30373159,2688.2,2687.6,19.29861487]
[1724393205086,12.35573775,2688.2,2687.6,19.35365049]
[1724393205287,8.63567775,2688.2,2687.6,19.35365049]
[1724393205754,4.91571775,2688.2,2687.6,19.35365049]
[1724393206118,8.63567775,2688.2,2687.6,19.35365049]
[1724393206321,1.09316778,2688.1,2687.6,19.35365049]
[1724393206539,3.72024,2688.0,2687.6,19.35365049]
[1724393206820,3.0,2687.9,2687.6,19.35365049]
[1724393207458,6.20955,2687.7,2687.6,19.35365049]
[1724393207614,9.20955,2687.7,2687.6,19.35365049]
[1724393207813,7.081908,2687.7,2687.6,19.35365049]
[1724393208253,10.802558,2687.7,2687.6,19.35365049]
[1724393209156,7.081908,2687.7,2687.6,19.35365049]
[1724393209363,5.4889,2687.7,2687.6,19.35365049]
[1724393210430,2.4889,2687.7,2687.6,19.35365049]
[1724393210656,2.2547,2688.0,2687.6,19.35365049]
[1724393210830,2.2547,2688.0,2687.6,0.05503562]
[1724393211154,2.2547,2688.0,2687.2,19.29861487]
[1724393211351,2.2547,2688.0,2687.7,0.05502479]
[1724393211558,0.58377159,2688.2,2687.3,25.30278487]
[1724393211760,0.58377159,2688.2,2687.8,0.05497538]
[1724393211916,0.58377159,2688.2,2687.9,19.29861487]
[1724393212116,0.58377159,2688.2,2687.9,19.35354085]
[1724393212351,0.58377159,2688.2,2688.0,2.02871457]
[1724393212565,0.58377159,2688.2,2688.0,2.08359116]
[1724393213057,0.58377159,2688.2,2688.1,19.29861487]
[1724393213269,0.58377159,2688.2,2688.1,19.35344207]
[1724393215175,6.14041,2689.0,2688.1,19.35344207]
[1724393215470,0.58366751,2688.2,2688.1,0.0548272]
[1724393215773,3.71916,2688.8,2688.1,19.42]
[1724393215960,3.0,2688.7,2688.2,19.42]
[1724393216153,3.0,2688.7,2688.2,19.48102847]
[1724393216347,7.51492031,2688.7,2688.2,19.48102847]
[1724393217137,3.79558031,2688.7,2688.2,19.48102847]
[1724393217550,3.0,2688.7,2688.2,19.48102847]
[1724393217962,0.58366129,2688.8,2688.2,19.48102847]
[1724393219280,4.30287129,2688.8,2688.2,19.48102847]
[1724393219880,4.30287129,2688.8,2688.3,19.42]
[1724393220086,4.30287129,2688.8,2688.3,19.48097292]
[1724393220386,5.64722042,2688.8,2688.3,19.48097292]
[1724393220551,6.71936,2688.7,2688.3,19.48097292]
[1724393220972,6.71936,2688.7,2688.3,19.42]
[1724393221500,3.0,2688.7,2688.3,19.42]
[1724393221697,3.71946,2688.6,2687.8,19.42]
[1724393221904,4.92801042,2688.8,2687.8,19.42]
[1724393221905,9.00035,2688.5,2687.8,19.42]
[1724393222088,6.00035,2688.5,2687.9,0.0542222]
[1724393222604,2.2808,2688.5,2687.9,0.0542222]
[1724393223196,2.2808,2688.5,2687.9,2.00164442]
[1724393225808,2.2808,2688.5,2688.0,19.42]
[1724393226176,2.2808,2688.5,2688.1,0.05412341]
[1724393227330,2.2808,2688.5,2688.0,19.42]
[1724393227697,2.2808,2688.5,2688.1,0.05410414]
[1724393228600,3.0,2688.7,2688.1,0.05410414]
[1724393229035,3.0,2688.7,2688.1,2.00151455]
[1724393229482,3.04326129,2688.8,2688.1,2.00151455]
[1724393229679,0.58366129,2688.8,2688.1,2.00151455]
[1724393231644,0.58366129,2688.8,2688.1,5.72160455]
[1724393231928,0.58366129,2688.8,2688.2,19.42]
[1724393232140,0.58366129,2688.8,2688.2,21.93417346]
[1724393233316,3.58366129,2688.8,2688.2,19.42]
[1724393234334,0.58366129,2688.8,2688.2,19.42]
[1724393234984,4.30280129,2688.8,2688.2,19.42]
[1724393235190,3.0,2688.7,2688.2,19.42]
[1724393235387,3.71947,2688.6,2688.2,19.42]
[1724393235637,5.4903,2688.5,2688.2,19.42]
[1724393235850,9.20986,2688.5,2688.2,19.42]
[1724393236349,5.4903,2688.5,2688.2,19.42]
[1724393236836,9.20985,2688.5,2688.2,19.42]
[1724393237197,9.20998,2688.5,2688.2,19.42]
[1724393237397,3.71969,2688.4,2688.2,19.42]
[1724393237598,3.0,2688.3,2688.0,19.42]
[1724393238017,3.0,2688.4,2688.1,0.05410414]
[1724393238468,5.4903,2688.5,2688.1,0.05410414]
[1724393238748,2.4903,2688.5,2688.1,0.05410414]
[1724393239768,5.4903,2688.5,2688.1,0.05410414]
[1724393239907,3.71969,2688.4,2688.1,0.05410414]
[1724393240263,3.0,2688.3,2688.0,19.42]
[1724393240440,3.0,2688.4,2688.0,19.42]
[1724393240738,7.51691939,2688.4,2688.1,0.05421979]
[1724393240911,3.71996,2688.2,2688.1,0.05421979]
[1724393241112,6.71996,2688.2,2687.4,19.42]
[1724393241318,2.4716,2688.0,2687.3,19.42]
[1724393241680,3.72093,2687.5,2687.4,19.42]
[1724393241871,3.72093,2687.5,2686.6,19.42]
[1724393242149,3.72141,2687.2,2686.7,18.83612222]
[1724393242365,3.72149,2687.1,2686.7,18.83612222]
[1724393242518,3.72176,2686.9,2686.7,18.83612222]
[1724393242721,2.3104,2686.9,2686.4,18.83612222]
[1724393242923,3.0,2687.0,2686.4,18.83612222]
[1724393243119,3.0,2687.1,2686.4,18.83612222]
[1724393243580,3.903186,2687.1,2686.4,18.83612222]
[1724393244136,8.20875012,2687.1,2686.4,18.83612222]
[1724393244379,3.72164,2687.0,2686.4,18.83612222]
[1724393244577,6.72176,2686.9,2686.4,18.83612222]
[1724393244730,6.19584,2686.7,2685.9,18.83612222]
[1724393244950,3.0,2686.6,2686.0,18.83612222]
[1724393245428,6.72218,2686.6,2686.0,18.83612222]
[1724393245759,3.0,2686.6,2686.0,18.83612222]
[1724393245964,8.364354,2686.5,2686.0,18.83612222]
[1724393246122,3.0,2686.4,2686.0,18.83612222]
[1724393247863,6.72247,2686.4,2686.0,18.83612222]
[1724393248233,3.0,2686.4,2686.0,18.83612222]
[1724393248554,3.0,2686.6,2686.0,18.83612222]
[1724393248882,0.54737,2686.5,2686.0,18.83612222]
[1724393249178,3.0,2686.6,2686.0,18.83612222]
[1724393249326,5.4737,2686.7,2686.0,18.83612222]
[1724393249525,0.6145876,2686.6,2686.1,18.83612222]
[1724393249763,3.6145876,2686.6,2686.1,18.83612222]
[1724393251065,7.3368576,2686.6,2686.1,18.83612222]
[1724393251637,3.6145876,2686.6,2686.1,18.83612222]
[1724393254580,3.72254,2686.4,2686.1,18.83612222]
[1724393254805,3.05436412,2687.1,2686.1,22.55897222]
[1724393254953,3.05436412,2687.1,2686.1,18.83612222]
[1724393255152,3.72169,2687.0,2686.1,18.83612222]
[1724393255553,3.72169,2687.0,2686.2,18.83612222]
[1724393255754,1.04974741,2687.0,2686.2,18.83612222]
[1724393256155,4.77138741,2687.0,2686.2,18.83612222]
[1724393256547,3.72179,2686.9,2686.2,18.83612222]
[1724393257345,3.0,2686.8,2686.2,18.83612222]
[1724393257546,3.0,2686.9,2686.3,2.2684]
[1724393257751,1.04974741,2687.0,2686.3,2.2684]
[1724393258000,1.04974741,2687.0,2686.2,18.83612222]
[1724393258440,1.04974741,2687.0,2686.2,21.46432044]
[1724393259083,0.58396412,2687.1,2686.2,21.46432044]
[1724393259282,0.58396412,2687.1,2686.2,25.18703044]
[1724393259583,0.58396412,2687.1,2686.3,18.83612222]
[1724393262583,0.58396412,2687.1,2686.5,2.3952]
[1724393262784,0.58396412,2687.1,2686.8,3.7218]
[1724393263207,0.58396412,2687.1,2686.9,3.72173]
[1724393263565,0.58396412,2687.1,2687.0,26.27936222]
[1724393263908,0.58396412,2687.1,2687.0,34.22388571]
[1724393264080,2.3204,2688.6,2687.7,6.05693]
[1724393264289,2.3204,2689.0,2688.1,3.72]
[1724393264598,0.58371431,2688.4,2688.2,0.07439448]
[1724393264788,0.23204,2688.9,2688.1,3.72002]
[1724393265319,0.23204,2688.9,2687.9,3.72026]
[1724393265704,0.23204,2688.9,2687.8,18.83612222]
[1724393265705,3.71927,2688.7,2687.8,18.83612222]
[1724393265866,1.21077515,2688.8,2687.8,18.83612222]
[1724393266062,0.58363815,2688.8,2687.8,18.83612222]
[1724393266322,0.58363815,2688.8,2688.1,3.71998]
[1724393267108,0.58363815,2688.8,2687.9,2.3364]
[1724393267515,0.58363815,2688.8,2688.0,18.83612222]
[1724393267735,0.58363815,2688.8,2688.0,25.04562344]
[1724393269167,0.58363815,2688.8,2688.0,25.04556344]
[1724393269367,0.58363815,2688.8,2688.1,0.07439121]
[1724393269569,3.0,2688.9,2688.2,3.71986]
[1724393269777,3.005,2689.2,2688.3,18.91051169]
[1724393270073,3.005,2689.2,2688.0,9.84928122]
[1724393270074,0.005,2689.2,2688.4,19.29638893]
[1724393270305,0.005,2689.2,2688.6,3.71933]
[1724393270583,0.005,2689.2,2688.4,22.94157357]
[1724393271124,0.005,2689.2,2688.4,26.66117357]
[1724393271273,0.005,2689.2,2688.5,5.54720349]
[1724393271476,0.005,2689.2,2688.6,3.71938]
[1724393271682,0.005,2689.2,2688.5,4.14280349]
[1724393272531,0.005,2689.2,2688.4,18.83612222]
[1724393272679,6.10297,2688.9,2688.4,18.83612222]
[1724393272993,3.71915,2688.8,2688.4,18.83612222]
[1724393273332,6.71915,2688.8,2688.5,18.83612222]
[1724393273630,0.910305,2688.7,2688.5,18.83612222]
[1724393274155,0.910305,2688.7,2687.7,2.4227]
[1724393274275,0.910305,2688.7,2687.5,18.83612222]
[1724393274276,4.629585,2688.7,2687.5,18.83612222]
[1724393274479,0.910305,2688.7,2687.7,3.72052]
[1724393274672,0.910305,2688.7,2687.8,3.7205]
[1724393274871,3.0,2688.8,2688.1,3.72008]
[1724393275105,2.3839,2688.9,2688.0,3.72016]
[1724393275320,2.3839,2688.9,2688.0,7.44031]
[1724393275512,2.3839,2688.9,2687.7,2.62773322]
[1724393275513,2.3839,2688.9,2687.9,3.72034]
[1724393275814,5.3839,2688.9,2687.9,3.72034]
[1724393275980,0.910275,2688.8,2687.9,4.72719032]
[1724393276180,3.910275,2688.8,2688.0,3.7202]
[1724393276384,3.0,2688.8,2688.0,3.7202]
[1724393276703,2.3839,2688.9,2688.0,3.7202]
[1724393277484,2.3839,2688.9,2687.9,1.00685032]
[1724393277790,0.005,2689.2,2688.6,3.71938]
[1724393277978,0.005,2689.2,2688.4,7.43918]
[1724393278318,0.005,2689.2,2688.4,1.06828252]
[1724393278517,0.005,2689.2,2688.2,26.27591222]
[1724393278723,0.005,2689.2,2688.3,3.71977]
[1724393279426,0.005,2689.2,2688.4,3.71959]
[1724393279921,0.005,2689.2,2688.6,3.71938]
[1724393280077,0.005,2689.2,2688.7,4.091108]
[1724393280284,0.005,2689.2,2688.7,0.371938]
[1724393280482,0.005,2689.2,2688.5,3.71954]
[1724393281025,0.005,2689.2,2688.7,3.71925]
[1724393281527,0.005,2689.2,2688.6,3.71937]
[1724393281740,0.005,2689.2,2688.7,3.71921]
[1724393282247,0.005,2689.2,2688.8,18.83612222]
[1724393282850,0.005,2689.2,2688.8,21.09165544]
[1724393283050,0.005,2689.2,2688.9,0.07437573]
[1724393283222,0.005,2689.2,2688.9,3.79334573]
[1724393283650,0.005,2689.2,2689.0,3.71877]
[1724393283855,0.005,2689.2,2689.1,0.07436432]
[1724393284218,0.005,2689.2,2689.1,3.79307432]
[1724393285119,0.005,2689.2,2689.1,8.87790252]
[1724393285862,2.3074,2690.2,2689.5,3.71807]
[1724393286056,7.43322,2690.7,2689.6,22.54913222]
[1724393286057,2.3088,2690.6,2689.6,22.54913222]
[1724393286257,2.3088,2690.6,2689.7,0.07434915]
[1724393286959,2.3088,2690.6,2689.8,3.71767]
[1724393287271,0.005,2691.0,2690.0,2.2803]
[1724393287418,0.005,2691.0,2690.6,3.71653]
[1724393287623,0.005,2691.0,2690.0,2.2803]
[1724393287624,0.005,2691.0,2690.5,3.71667]
[1724393287823,0.005,2691.0,2690.4,3.71684]
[1724393288345,0.005,2691.0,2690.4,4.3444684]
[1724393288571,0.005,2691.0,2690.0,5.9977]
[1724393288757,3.71637,2690.8,2689.9,5.0]
[1724393289140,3.71637,2690.8,2689.3,2.4849]
[1724393289351,3.71637,2690.8,2689.6,3.7179]